[Event "Titled Tuesday Blitz December 20 Early 2022"]
[White "Garma, Chito"]
[Black "dropstoneDP"]
[WhiteFideId "5200342"]
[WhiteElo "2345"]
[BlackElo "3038"]
[Result "0-1"]
[Round "09"]
[TimeControl "180+2"]
[Date "2022.12.20"]
[WhiteClock "0:00:01"]
[BlackClock "0:00:02"]

1. Nf3 {[%clk 0:03:00]}  Nf6 {[%clk 0:02:59]} 2. c4 {[%clk 0:03:00]}  g6 {[%clk 0:02:59]} 3. b3 {[%clk 0:03:01]}  Bg7 {[%clk 0:02:59]} 4. Bb2 {[%clk 0:03:01]}  O-O {[%clk 0:02:58]} 5. g3 {[%clk 0:03:02]}  d6 {[%clk 0:02:58]} 6. d4 {[%clk 0:03:01]}  e5 {[%clk 0:02:58]} 7. Bg2 {[%clk 0:03:01]}  Nc6 {[%clk 0:02:41]} 8. dxe5 {[%clk 0:02:58]}  dxe5 {[%clk 0:02:28]} 9. Qxd8 {[%clk 0:02:53]}  Rxd8 {[%clk 0:02:29]} 10. Nxe5 {[%clk 0:02:54]}  Nb4 {[%clk 0:02:28]} 11. Na3 {[%clk 0:02:54]}  Ng4 {[%clk 0:02:20]} 12. f4 {[%clk 0:02:49]}  Nxe5 {[%clk 0:01:53]} 13. fxe5 {[%clk 0:02:39]}  c6 {[%clk 0:01:44]} 14. Kf2 {[%clk 0:02:21]}  Bf5 {[%clk 0:01:21]} 15. h3 {[%clk 0:01:58]}  h5 {[%clk 0:01:14]} 16. Bf3 {[%clk 0:01:58]}  Re8 {[%clk 0:00:54]} 17. g4 {[%clk 0:01:58]}  hxg4 {[%clk 0:00:55]} 18. hxg4 {[%clk 0:01:59]}  Be6 {[%clk 0:00:46]} 19. Rhd1 {[%clk 0:01:59]}  Rad8 {[%clk 0:00:44]} 20. Bc3 {[%clk 0:01:54]}  a5 {[%clk 0:00:43]} 21. Kg2 {[%clk 0:01:39]}  Bf8 {[%clk 0:00:41]} 22. Bd4 {[%clk 0:01:28]}  Rd7 {[%clk 0:00:33]} 23. Bb6 {[%clk 0:01:19]}  Rxd1 {[%clk 0:00:29]} 24. Rxd1 {[%clk 0:01:20]}  Nxa2 {[%clk 0:00:29]} 25. Nc2 {[%clk 0:01:05]}  a4 {[%clk 0:00:29]} 26. bxa4 {[%clk 0:01:01]}  Nc3 {[%clk 0:00:29]} 27. Ra1 {[%clk 0:00:56]}  Bxc4 {[%clk 0:00:26]} 28. Nd4 {[%clk 0:00:46]}  Ba6 {[%clk 0:00:19]} 29. Bc7 {[%clk 0:00:44]}  Bg7 {[%clk 0:00:17]} 30. Rc1 {[%clk 0:00:35]}  Nxa4 {[%clk 0:00:13]} 31. Nxc6 {[%clk 0:00:36]}  bxc6 {[%clk 0:00:12]} 32. Bxc6 {[%clk 0:00:36]}  Rc8 {[%clk 0:00:12]} 33. Bd7 {[%clk 0:00:28]}  Bb7+ {[%clk 0:00:11]} 34. Kf1 {[%clk 0:00:27]}  Ra8 {[%clk 0:00:10]} 35. e6 {[%clk 0:00:27]}  Bf8 {[%clk 0:00:09]} 36. Rb1 {[%clk 0:00:11]}  Nc5 {[%clk 0:00:09]} 37. exf7+ {[%clk 0:00:10]}  Kxf7 {[%clk 0:00:09]} 38. Bb5 {[%clk 0:00:11]}  Be4 {[%clk 0:00:09]} 39. Bc4+ {[%clk 0:00:11]}  Kf6 {[%clk 0:00:07]} 40. Rb6+ {[%clk 0:00:11]}  Kg5 {[%clk 0:00:06]} 41. Rb5 {[%clk 0:00:04]}  Kxg4 {[%clk 0:00:05]} 42. Bb6 {[%clk 0:00:05]}  Rc8 {[%clk 0:00:03]} 43. Bf7 {[%clk 0:00:03]}  Bf5 {[%clk 0:00:03]} 44. Ra5 {[%clk 0:00:02]}  Ne4 {[%clk 0:00:03]} 45. Bd5 {[%clk 0:00:02]}  Rc1+ {[%clk 0:00:03]} 46. Kg2 {[%clk 0:00:03]}  Bc5 {[%clk 0:00:02]} 47. Bxe4 {[%clk 0:00:01]}  Bxe4+ {[%clk 0:00:02]} 0-1


[Site "https://www.chess.com"]

[Event "Titled Tuesday Blitz December 20 Early 2022"]
[White "GiorgianBarbosa"]
[Black "Meri-Arabidze"]
[WhiteElo "2484"]
[BlackElo "2730"]
[Result "1/2-1/2"]
[Round "09"]
[TimeControl "180+2"]
[Date "2022.12.20"]
[WhiteClock "0:00:46"]
[BlackClock "0:01:39"]

1. d4 {[%clk 0:03:00]}  d5 {[%clk 0:02:59]} 2. c4 {[%clk 0:03:01]}  dxc4 {[%clk 0:03:00]} 3. e3 {[%clk 0:02:56]}  Nf6 {[%clk 0:03:00]} 4. Bxc4 {[%clk 0:02:57]}  e6 {[%clk 0:03:00]} 5. Nf3 {[%clk 0:02:57]}  a6 {[%clk 0:03:01]} 6. a4 {[%clk 0:02:53]}  c5 {[%clk 0:03:00]} 7. O-O {[%clk 0:02:53]}  Nc6 {[%clk 0:03:00]} 8. Nc3 {[%clk 0:02:50]}  cxd4 {[%clk 0:03:00]} 9. exd4 {[%clk 0:02:51]}  Nb4 {[%clk 0:02:58]} 10. Re1 {[%clk 0:02:44]}  Be7 {[%clk 0:02:58]} 11. Bg5 {[%clk 0:02:37]}  O-O {[%clk 0:02:58]} 12. Qb3 {[%clk 0:02:02]}  Nc6 {[%clk 0:02:47]} 13. Qd1 {[%clk 0:01:57]}  h6 {[%clk 0:02:46]} 14. Bh4 {[%clk 0:01:54]}  Nb4 {[%clk 0:02:45]} 15. Qb3 {[%clk 0:01:53]}  a5 {[%clk 0:02:42]} 16. Rad1 {[%clk 0:01:48]}  Bd7 {[%clk 0:01:51]} 17. Ne5 {[%clk 0:01:45]}  Bc6 {[%clk 0:01:44]} 18. Bxe6 {[%clk 0:01:13]}  fxe6 {[%clk 0:01:45]} 19. Qxe6+ {[%clk 0:01:12]}  Kh7 {[%clk 0:01:45]} 20. Qf5+ {[%clk 0:01:10]}  Kg8 {[%clk 0:01:41]} 21. Qe6+ {[%clk 0:01:10]}  Kh7 {[%clk 0:01:39]} 22. Qf5+ {[%clk 0:01:09]}  Kg8 {[%clk 0:01:39]} 23. Qe6+ {[%clk 0:00:46]} 1/2-1/2


[Site "https://www.chess.com"]

[Event "Titled Tuesday Blitz December 20 Early 2022"]
[White "Goryachkina, Aleksandra"]
[Black "Vsevolod_Ovchinnikov"]
[WhiteFideId "4147103"]
[WhiteElo "2571"]
[BlackElo "2557"]
[Result "1-0"]
[Round "09"]
[TimeControl "180+2"]
[Date "2022.12.20"]
[WhiteClock "0:00:05"]
[BlackClock "0:00:02"]

1. Nf3 {[%clk 0:02:59]}  Nf6 {[%clk 0:03:00]} 2. c4 {[%clk 0:02:56]}  g6 {[%clk 0:02:59]} 3. g3 {[%clk 0:02:53]}  Bg7 {[%clk 0:02:59]} 4. Bg2 {[%clk 0:02:52]}  d5 {[%clk 0:03:00]} 5. cxd5 {[%clk 0:02:46]}  Nxd5 {[%clk 0:03:00]} 6. O-O {[%clk 0:02:46]}  Nc6 {[%clk 0:02:56]} 7. Nc3 {[%clk 0:02:42]}  Nb6 {[%clk 0:02:56]} 8. d3 {[%clk 0:02:36]}  O-O {[%clk 0:02:55]} 9. Be3 {[%clk 0:02:32]}  e5 {[%clk 0:02:54]} 10. Rc1 {[%clk 0:02:31]}  h6 {[%clk 0:02:51]} 11. b4 {[%clk 0:02:22]}  Re8 {[%clk 0:02:35]} 12. b5 {[%clk 0:01:57]}  Nd4 {[%clk 0:02:35]} 13. Bxd4 {[%clk 0:01:56]}  exd4 {[%clk 0:02:35]} 14. Ne4 {[%clk 0:01:57]}  a6 {[%clk 0:02:22]} 15. a4 {[%clk 0:01:45]}  axb5 {[%clk 0:02:22]} 16. axb5 {[%clk 0:01:45]}  Ra5 {[%clk 0:01:57]} 17. Qc2 {[%clk 0:01:42]}  Re7 {[%clk 0:01:55]} 18. Rb1 {[%clk 0:01:30]}  Be6 {[%clk 0:01:44]} 19. Rfc1 {[%clk 0:01:25]}  Bd5 {[%clk 0:01:19]} 20. Qd2 {[%clk 0:00:55]}  Ra2 {[%clk 0:01:12]} 21. Rc2 {[%clk 0:00:52]}  Rxc2 {[%clk 0:01:01]} 22. Qxc2 {[%clk 0:00:53]}  f5 {[%clk 0:00:54]} 23. Nc5 {[%clk 0:00:49]}  Qe8 {[%clk 0:00:52]} 24. Kf1 {[%clk 0:00:45]}  Kh7 {[%clk 0:00:51]} 25. Ng1 {[%clk 0:00:34]}  Bxg2+ {[%clk 0:00:42]} 26. Kxg2 {[%clk 0:00:35]}  Qf7 {[%clk 0:00:31]} 27. Qb3 {[%clk 0:00:32]}  Qf8 {[%clk 0:00:21]} 28. Rc1 {[%clk 0:00:31]}  Qa8 {[%clk 0:00:19]} 29. Kf1 {[%clk 0:00:29]}  Qc8 {[%clk 0:00:12]} 30. Qa2 {[%clk 0:00:27]}  Nd7 {[%clk 0:00:06]} 31. Nxd7 {[%clk 0:00:23]}  Qxd7 {[%clk 0:00:07]} 32. Qc4 {[%clk 0:00:23]}  Qd6 {[%clk 0:00:06]} 33. Nf3 {[%clk 0:00:21]}  Qf6 {[%clk 0:00:04]} 34. Qd5 {[%clk 0:00:17]}  Qb6 {[%clk 0:00:03]} 35. h4 {[%clk 0:00:16]}  Qe6 {[%clk 0:00:02]} 36. Qxe6 {[%clk 0:00:15]}  Rxe6 {[%clk 0:00:03]} 37. Rxc7 {[%clk 0:00:15]}  Rb6 {[%clk 0:00:03]} 38. Nxd4 {[%clk 0:00:13]}  Kh8 {[%clk 0:00:04]} 39. e3 {[%clk 0:00:05]}  Bxd4 {[%clk 0:00:04]} 40. exd4 {[%clk 0:00:05]}  Rxb5 {[%clk 0:00:04]} 41. Ke2 {[%clk 0:00:06]}  Rd5 {[%clk 0:00:04]} 42. Rxb7 {[%clk 0:00:06]}  Rxd4 {[%clk 0:00:04]} 43. Ke3 {[%clk 0:00:06]}  Rd8 {[%clk 0:00:04]} 44. d4 {[%clk 0:00:07]}  Kg8 {[%clk 0:00:04]} 45. Kd3 {[%clk 0:00:05]}  g5 {[%clk 0:00:03]} 46. h5 {[%clk 0:00:05]}  Rd6 {[%clk 0:00:03]} 47. Kc4 {[%clk 0:00:05]}  f4 {[%clk 0:00:03]} 48. gxf4 {[%clk 0:00:04]}  gxf4 {[%clk 0:00:04]} 49. d5 {[%clk 0:00:05]}  Kf8 {[%clk 0:00:03]} 50. Kc5 {[%clk 0:00:05]}  Rf6 {[%clk 0:00:03]} 51. d6 {[%clk 0:00:05]}  Ke8 {[%clk 0:00:04]} 52. Kc6 {[%clk 0:00:05]}  Rf5 {[%clk 0:00:02]} 53. Rb8+ {[%clk 0:00:04]}  Kf7 {[%clk 0:00:02]} 54. d7 {[%clk 0:00:05]} 1-0


[Site "https://www.chess.com"]

[Event "Titled Tuesday Blitz December 20 Early 2022"]
[White "Groz, Jacky"]
[Black "GoltsevDmitry2000"]
[WhiteFideId "626643"]
[WhiteElo "2052"]
[BlackElo "2739"]
[Result "1-0"]
[Round "09"]
[TimeControl "180+2"]
[Date "2022.12.20"]
[WhiteClock "0:00:52"]
[BlackClock "0:00:26"]

1. Nf3 {[%clk 0:02:58]}  d5 {[%clk 0:03:00]} 2. g3 {[%clk 0:02:58]}  c6 {[%clk 0:03:01]} 3. Bg2 {[%clk 0:02:58]}  Nf6 {[%clk 0:03:01]} 4. O-O {[%clk 0:02:58]}  g6 {[%clk 0:03:02]} 5. d3 {[%clk 0:02:59]}  Bg7 {[%clk 0:03:03]} 6. Nc3 {[%clk 0:02:57]}  O-O {[%clk 0:03:03]} 7. e4 {[%clk 0:02:57]}  dxe4 {[%clk 0:03:03]} 8. dxe4 {[%clk 0:02:55]}  Qxd1 {[%clk 0:03:04]} 9. Rxd1 {[%clk 0:02:55]}  Nbd7 {[%clk 0:03:02]} 10. h3 {[%clk 0:02:53]}  Nc5 {[%clk 0:02:59]} 11. e5 {[%clk 0:02:48]}  Nfe4 {[%clk 0:02:58]} 12. Nxe4 {[%clk 0:02:47]}  Nxe4 {[%clk 0:02:53]} 13. Be3 {[%clk 0:02:46]}  f5 {[%clk 0:02:49]} 14. c3 {[%clk 0:02:26]}  Be6 {[%clk 0:02:41]} 15. Nd4 {[%clk 0:02:25]}  Bd5 {[%clk 0:02:38]} 16. f4 {[%clk 0:02:11]}  Rfd8 {[%clk 0:02:25]} 17. g4 {[%clk 0:02:00]}  e6 {[%clk 0:02:24]} 18. Bxe4 {[%clk 0:01:38]}  fxe4 {[%clk 0:02:16]} 19. Rac1 {[%clk 0:01:34]}  b5 {[%clk 0:02:14]} 20. b3 {[%clk 0:01:34]}  Bf8 {[%clk 0:02:02]} 21. Bf2 {[%clk 0:01:16]}  a6 {[%clk 0:01:52]} 22. c4 {[%clk 0:01:16]}  bxc4 {[%clk 0:01:53]} 23. bxc4 {[%clk 0:01:16]}  c5 {[%clk 0:01:52]} 24. cxd5 {[%clk 0:01:16]}  cxd4 {[%clk 0:01:52]} 25. d6 {[%clk 0:01:14]}  e3 {[%clk 0:00:59]} 26. Bh4 {[%clk 0:01:14]}  Rd7 {[%clk 0:00:52]} 27. Rxd4 {[%clk 0:01:13]}  h6 {[%clk 0:00:48]} 28. Re4 {[%clk 0:01:05]}  Kf7 {[%clk 0:00:36]} 29. Rxe3 {[%clk 0:01:04]}  Rb8 {[%clk 0:00:33]} 30. Rec3 {[%clk 0:01:02]}  g5 {[%clk 0:00:30]} 31. fxg5 {[%clk 0:00:58]}  hxg5 {[%clk 0:00:30]} 32. Bxg5 {[%clk 0:00:58]}  Bg7 {[%clk 0:00:31]} 33. Rc7 {[%clk 0:00:58]}  Rxc7 {[%clk 0:00:25]} 34. Rxc7+ {[%clk 0:00:58]}  Kg6 {[%clk 0:00:25]} 35. Rxg7+ {[%clk 0:00:52]}  Kxg7 {[%clk 0:00:26]} 36. d7 {[%clk 0:00:52]} 1-0


[Site "https://www.chess.com"]

[Event "Titled Tuesday Blitz December 20 Early 2022"]
[White "Haimov, Elchanan"]
[Black "Mileo, Miguelito"]
[WhiteFideId "2835916"]
[BlackFideId "851108"]
[WhiteElo "1707"]
[BlackElo "1721"]
[Result "1-0"]
[Round "09"]
[TimeControl "180+2"]
[Date "2022.12.20"]
[WhiteClock "0:00:36"]
[BlackClock "0:00:12"]

1. d4 {[%clk 0:03:00]}  Nf6 {[%clk 0:02:56]} 2. Bg5 {[%clk 0:03:00]}  c5 {[%clk 0:02:54]} 3. d5 {[%clk 0:03:00]}  d6 {[%clk 0:02:50]} 4. Bxf6 {[%clk 0:02:53]}  exf6 {[%clk 0:02:51]} 5. Nd2 {[%clk 0:02:48]}  g6 {[%clk 0:02:50]} 6. g3 {[%clk 0:02:47]}  Bg7 {[%clk 0:02:49]} 7. Bg2 {[%clk 0:02:48]}  f5 {[%clk 0:02:49]} 8. c3 {[%clk 0:02:46]}  O-O {[%clk 0:02:45]} 9. a4 {[%clk 0:02:45]}  Nd7 {[%clk 0:02:44]} 10. e3 {[%clk 0:02:45]}  Rb8 {[%clk 0:02:43]} 11. Ne2 {[%clk 0:02:42]}  a6 {[%clk 0:02:35]} 12. Nc4 {[%clk 0:02:34]}  Ne5 {[%clk 0:02:35]} 13. Nxe5 {[%clk 0:02:31]}  Bxe5 {[%clk 0:02:36]} 14. O-O {[%clk 0:02:31]}  b5 {[%clk 0:02:36]} 15. axb5 {[%clk 0:02:30]}  Rxb5 {[%clk 0:02:31]} 16. Qc2 {[%clk 0:02:26]}  Qb6 {[%clk 0:02:29]} 17. Ra2 {[%clk 0:02:20]}  Bb7 {[%clk 0:02:27]} 18. Nf4 {[%clk 0:02:19]}  Rb8 {[%clk 0:02:11]} 19. Nd3 {[%clk 0:02:12]}  Bf6 {[%clk 0:02:11]} 20. h4 {[%clk 0:02:12]}  Bc8 {[%clk 0:02:10]} 21. Rb1 {[%clk 0:01:52]}  a5 {[%clk 0:01:57]} 22. c4 {[%clk 0:01:28]}  Rb3 {[%clk 0:01:56]} 23. Nc1 {[%clk 0:01:23]}  a4 {[%clk 0:01:27]} 24. Rxa4 {[%clk 0:01:14]}  Rxb2 {[%clk 0:01:10]} 25. Rxb2 {[%clk 0:01:01]}  Bxb2 {[%clk 0:01:10]} 26. Ra2 {[%clk 0:00:55]}  Bf6 {[%clk 0:01:08]} 27. Ne2 {[%clk 0:00:51]}  Kg7 {[%clk 0:01:03]} 28. Nf4 {[%clk 0:00:50]}  h6 {[%clk 0:00:51]} 29. Bf3 {[%clk 0:00:50]}  Qb7 {[%clk 0:00:40]} 30. Kg2 {[%clk 0:00:49]}  Ra8 {[%clk 0:00:40]} 31. Rxa8 {[%clk 0:00:47]}  Qxa8 {[%clk 0:00:41]} 32. Qb3 {[%clk 0:00:44]}  Qa6 {[%clk 0:00:31]} 33. Qb8 {[%clk 0:00:41]}  Bd7 {[%clk 0:00:28]} 34. Qc7 {[%clk 0:00:40]}  Be5 {[%clk 0:00:18]} 35. Qxd7 {[%clk 0:00:36]}  Bxf4 {[%clk 0:00:18]} 36. gxf4 {[%clk 0:00:36]}  Qxc4 {[%clk 0:00:13]} 37. Qxd6 {[%clk 0:00:36]}  Qc1 {[%clk 0:00:12]} 38. Qe5+ {[%clk 0:00:36]}  Kg8 {[%clk 0:00:12]} 39. d6 {[%clk 0:00:36]} 1-0


[Site "https://www.chess.com"]

[Event "Titled Tuesday Blitz December 20 Early 2022"]
[White "Hansch, Karsten"]
[Black "Zampronha, Wladimir Camilo"]
[WhiteFideId "24692239"]
[BlackFideId "2103087"]
[WhiteElo "2248"]
[BlackElo "2176"]
[Result "1-0"]
[Round "09"]
[TimeControl "180+2"]
[Date "2022.12.20"]
[WhiteClock "0:01:14"]
[BlackClock "0:00:41"]

1. e4 {[%clk 0:03:00]}  c5 {[%clk 0:02:54]} 2. Nf3 {[%clk 0:03:00]}  e6 {[%clk 0:02:54]} 3. c4 {[%clk 0:03:00]}  Nc6 {[%clk 0:02:54]} 4. Nc3 {[%clk 0:03:01]}  Nf6 {[%clk 0:02:52]} 5. Be2 {[%clk 0:02:59]}  d5 {[%clk 0:02:52]} 6. exd5 {[%clk 0:03:00]}  exd5 {[%clk 0:02:53]} 7. d4 {[%clk 0:03:01]}  dxc4 {[%clk 0:02:52]} 8. d5 {[%clk 0:03:00]}  Na5 {[%clk 0:02:45]} 9. Bg5 {[%clk 0:02:56]}  Be7 {[%clk 0:02:45]} 10. Bxc4 {[%clk 0:02:24]}  Nxc4 {[%clk 0:02:42]} 11. Qa4+ {[%clk 0:02:24]}  Bd7 {[%clk 0:02:41]} 12. Qxc4 {[%clk 0:02:24]}  O-O {[%clk 0:02:34]} 13. d6 {[%clk 0:01:55]}  Bxd6 {[%clk 0:02:31]} 14. O-O-O {[%clk 0:01:56]}  Qe7 {[%clk 0:02:05]} 15. Nd5 {[%clk 0:01:45]}  Qd8 {[%clk 0:01:00]} 16. Nxf6+ {[%clk 0:01:37]}  gxf6 {[%clk 0:00:59]} 17. Bh6 {[%clk 0:01:37]}  Be6 {[%clk 0:00:55]} 18. Qh4 {[%clk 0:01:25]}  Qa5 {[%clk 0:00:44]} 19. Rxd6 {[%clk 0:01:16]}  Qxa2 {[%clk 0:00:41]} 20. Qg3+ {[%clk 0:01:14]} 1-0


[Site "https://www.chess.com"]

[Event "Titled Tuesday Blitz December 20 Early 2022"]
[White "JaloliddinIlkhomi"]
[Black "Andrii_Prydun"]
[WhiteElo "2533"]
[BlackElo "2387"]
[Result "1-0"]
[Round "09"]
[TimeControl "180+2"]
[Date "2022.12.20"]
[WhiteClock "0:01:23"]
[BlackClock "0:00:00"]

1. d4 {[%clk 0:03:00]}  Nf6 {[%clk 0:02:59]} 2. Nf3 {[%clk 0:03:00]}  c5 {[%clk 0:02:58]} 3. e3 {[%clk 0:02:59]}  cxd4 {[%clk 0:02:57]} 4. exd4 {[%clk 0:03:00]}  Nc6 {[%clk 0:02:57]} 5. c3 {[%clk 0:03:00]}  g6 {[%clk 0:02:55]} 6. Bf4 {[%clk 0:03:00]}  Bg7 {[%clk 0:02:54]} 7. Nbd2 {[%clk 0:03:00]}  O-O {[%clk 0:02:54]} 8. Bc4 {[%clk 0:02:59]}  d6 {[%clk 0:02:49]} 9. O-O {[%clk 0:02:59]}  Bd7 {[%clk 0:02:42]} 10. Re1 {[%clk 0:02:57]}  Rb8 {[%clk 0:02:38]} 11. Qe2 {[%clk 0:02:43]}  a6 {[%clk 0:02:28]} 12. a4 {[%clk 0:02:43]}  Rc8 {[%clk 0:01:06]} 13. b4 {[%clk 0:02:15]}  h6 {[%clk 0:01:00]} 14. h3 {[%clk 0:02:14]}  Re8 {[%clk 0:00:59]} 15. Ba2 {[%clk 0:02:13]}  e5 {[%clk 0:00:46]} 16. dxe5 {[%clk 0:01:53]}  Nh5 {[%clk 0:00:45]} 17. Bh2 {[%clk 0:01:49]}  dxe5 {[%clk 0:00:41]} 18. Ne4 {[%clk 0:01:41]}  Re7 {[%clk 0:00:32]} 19. Nd6 {[%clk 0:01:38]}  Rc7 {[%clk 0:00:32]} 20. Rad1 {[%clk 0:01:35]}  Qf8 {[%clk 0:00:30]} 21. Qd3 {[%clk 0:01:32]}  Be6 {[%clk 0:00:16]} 22. Bxe6 {[%clk 0:01:26]}  Rxe6 {[%clk 0:00:17]} 23. Ne4 {[%clk 0:01:25]}  f5 {[%clk 0:00:11]} 24. Nc5 {[%clk 0:01:25]}  Ree7 {[%clk 0:00:05]} 25. Nh4 {[%clk 0:01:25]}  Kh7 {[%clk 0:00:01]} 26. Qd6 {[%clk 0:01:24]}  e4 {[%clk 0:00:00]} 27. Qxg6+ {[%clk 0:01:23]} 1-0


[Site "https://www.chess.com"]

[Event "Titled Tuesday Blitz December 20 Early 2022"]
[White "Jasko, Pavel"]
[Black "Artem_0degov"]
[WhiteFideId "980463"]
[WhiteElo "1693"]
[BlackElo "2661"]
[Result "0-1"]
[Round "09"]
[TimeControl "180+2"]
[Date "2022.12.20"]
[WhiteClock "0:00:15"]
[BlackClock "0:00:09"]

1. d4 {[%clk 0:03:00]}  Nf6 {[%clk 0:02:54]} 2. c4 {[%clk 0:02:59]}  c5 {[%clk 0:02:54]} 3. d5 {[%clk 0:02:59]}  e5 {[%clk 0:02:55]} 4. Nc3 {[%clk 0:02:57]}  d6 {[%clk 0:02:54]} 5. f4 {[%clk 0:02:58]}  exf4 {[%clk 0:02:54]} 6. Bxf4 {[%clk 0:02:57]}  Be7 {[%clk 0:02:54]} 7. Nf3 {[%clk 0:02:57]}  O-O {[%clk 0:02:55]} 8. e4 {[%clk 0:02:57]}  Nbd7 {[%clk 0:02:54]} 9. Bd3 {[%clk 0:02:58]}  Nh5 {[%clk 0:02:52]} 10. Be3 {[%clk 0:02:54]}  g6 {[%clk 0:02:52]} 11. O-O {[%clk 0:02:53]}  Bf6 {[%clk 0:02:52]} 12. Qd2 {[%clk 0:02:49]}  Ne5 {[%clk 0:02:50]} 13. Nxe5 {[%clk 0:02:49]}  Bxe5 {[%clk 0:02:51]} 14. Bh6 {[%clk 0:02:47]}  Re8 {[%clk 0:02:16]} 15. g3 {[%clk 0:02:36]}  Bh3 {[%clk 0:02:09]} 16. Bg5 {[%clk 0:02:24]}  f6 {[%clk 0:01:59]} 17. Be3 {[%clk 0:02:24]}  Bxf1 {[%clk 0:01:46]} 18. Bxf1 {[%clk 0:02:22]}  Qe7 {[%clk 0:01:46]} 19. Bg2 {[%clk 0:02:05]}  f5 {[%clk 0:01:30]} 20. Re1 {[%clk 0:01:50]}  Bxc3 {[%clk 0:01:28]} 21. Qxc3 {[%clk 0:01:50]}  fxe4 {[%clk 0:01:29]} 22. Bh3 {[%clk 0:01:46]}  Qe5 {[%clk 0:01:18]} 23. Qb3 {[%clk 0:01:30]}  Re7 {[%clk 0:01:04]} 24. Be6+ {[%clk 0:01:25]}  Kh8 {[%clk 0:01:05]} 25. Kg2 {[%clk 0:01:16]}  Ng7 {[%clk 0:01:00]} 26. Bh3 {[%clk 0:01:02]}  Rf8 {[%clk 0:00:58]} 27. Re2 {[%clk 0:00:49]}  Ref7 {[%clk 0:00:55]} 28. Qc2 {[%clk 0:00:40]}  Rf3 {[%clk 0:00:42]} 29. Bd2 {[%clk 0:00:39]}  e3 {[%clk 0:00:36]} 30. Bc3 {[%clk 0:00:39]}  Rf2+ {[%clk 0:00:35]} 31. Kg1 {[%clk 0:00:20]}  Qe7 {[%clk 0:00:20]} 32. Qd3 {[%clk 0:00:18]}  Rxe2 {[%clk 0:00:17]} 33. Qxe2 {[%clk 0:00:18]}  Qe4 {[%clk 0:00:17]} 34. Bg2 {[%clk 0:00:17]}  Qb1+ {[%clk 0:00:16]} 35. Be1 {[%clk 0:00:17]}  Qc1 {[%clk 0:00:12]} 36. h4 {[%clk 0:00:17]}  Rf2 {[%clk 0:00:10]} 37. Qg4 {[%clk 0:00:11]}  Qxe1+ {[%clk 0:00:09]} 38. Kh2 {[%clk 0:00:12]}  Rxg2+ {[%clk 0:00:07]} 39. Kxg2 {[%clk 0:00:11]}  Qf2+ {[%clk 0:00:07]} 40. Kh3 {[%clk 0:00:12]}  Qf5 {[%clk 0:00:07]} 41. Qxf5 {[%clk 0:00:12]}  Nxf5 {[%clk 0:00:08]} 42. Kg2 {[%clk 0:00:12]}  e2 {[%clk 0:00:08]} 43. Kf2 {[%clk 0:00:13]}  Nxg3 {[%clk 0:00:08]} 44. h5 {[%clk 0:00:13]}  gxh5 {[%clk 0:00:08]} 45. b4 {[%clk 0:00:13]}  b6 {[%clk 0:00:07]} 46. b5 {[%clk 0:00:13]}  h4 {[%clk 0:00:07]} 47. a4 {[%clk 0:00:14]}  h3 {[%clk 0:00:08]} 48. a5 {[%clk 0:00:13]}  h2 {[%clk 0:00:08]} 49. Kg2 {[%clk 0:00:14]}  h1=Q+ {[%clk 0:00:08]} 50. Kxg3 {[%clk 0:00:14]}  e1=Q+ {[%clk 0:00:09]} 51. Kf4 {[%clk 0:00:15]}  Qhe4+ {[%clk 0:00:09]} 52. Kg5 {[%clk 0:00:15]}  Q1h4# {[%clk 0:00:09]} 0-1


[Site "https://www.chess.com"]